fUSD/lending_fUSD_20240802
["ID","MTS","AMOUNT","RATE_DAILY","PERIOD"]
[333918707,1722630632696,-150.0,0.00010959,2]
[333918708,1722630632705,-155.35,0.0001099,2]
[333918709,1722630632715,-155.35,0.0001099,2]
[333918711,1722630632724,-155.35,0.0001099,2]
[333918712,1722630632733,-155.35,0.0001099,2]
[333918713,1722630632743,-499.99,0.00010997,2]
[333918714,1722630632752,-311.0,0.00010999,2]
[333918716,1722630632761,-150.0,0.00010999,2]
[333918718,1722630632770,-600162.17830811,0.00011,2]
[333918719,1722630633147,-2280.57713759,0.00011,2]
[333918720,1722630633159,-670.2429723,0.00011,2]
[333918721,1722630633184,-311.455,0.00011,2]
[333918722,1722630633196,-6599.90554356,0.00011,2]
[333918723,1722630633208,-1800.61673734,0.00011,2]
[333918724,1722630633221,-885.5159298,0.00011,2]
[333918725,1722630633248,-88628.95127736,0.00011,2]
[333918726,1722630633259,-968.08911481,0.00011,2]
[333918727,1722630633283,-8610.4235858,0.00011,2]
[333918728,1722630633294,-266.95294903,0.00011,2]
[333918729,1722630633317,-988917.17601227,0.00011,2]
[333918730,1722630633329,-10998.55771455,0.00011,2]
[333918731,1722630633343,-11601.21123776,0.00011,2]
[333918732,1722630633354,-374.154,0.00011,2]
[333918738,1722630638289,-2180.5836,0.00010997,2]
[333918740,1722630638301,-1916.13849213,0.00010997,2]
[333918743,1722630638311,-3339.7839213,0.00011,2]
[333918749,1722630638765,-1500.90477222,0.00011,2]
[333918751,1722630638777,-1200.98356259,0.00011,2]
[333918753,1722630638790,-1018.51446511,0.00011,2]
[333918768,1722630638932,-600.0,0.00011,2]
[333918772,1722630638955,-327.40327015,0.00011,2]
[333918774,1722630638966,-1291.06,0.00011,2]
[333918776,1722630638978,-2115.7613778,0.00011,2]
[333918780,1722630639001,-366.60447025,0.00011,2]
[333918782,1722630639012,-302.6099945,0.00011,2]
[333918784,1722630639023,-943.36963696,0.00011,2]
[333918786,1722630639034,-313.999999,0.00011,2]
[333918789,1722630639050,-300.0,0.00011,2]
[333918791,1722630639061,-8344.61681442,0.00011,2]
[333918793,1722630639072,-1506.54650978,0.00011,2]
[333918795,1722630639083,-967235.66181862,0.00011,2]
[333918797,1722630639092,-1694.62,0.00011,2]
[333918799,1722630639102,-2408.62801084,0.00011084,2]
[333918801,1722630639111,-155.0,0.00011105,2]
[333918803,1722630639120,-1153.87,0.00011585,2]
[333918805,1722630639129,-1153.87,0.00011588,2]
[333918807,1722630639138,-1153.87,0.00011591,2]
[333918809,1722630639148,-1153.87,0.00011594,2]
[333918811,1722630639157,-1153.87,0.00011597,2]
[333918813,1722630639166,-1153.87,0.000116,2]
[333918815,1722630639175,-1153.87,0.00011603,2]
[333918817,1722630639184,-1153.87,0.00011606,2]
[333918819,1722630639193,-6969.99,0.00011608,2]
[333918821,1722630639203,-1153.87,0.00011609,2]
[333918823,1722630639211,-1153.87,0.00011612,2]
[333918825,1722630639220,-1153.87,0.00011615,2]
[333918827,1722630639230,-1153.87,0.00011618,2]
[333918829,1722630639240,-1153.87,0.00011621,2]
[333918830,1722630639252,-1153.87,0.00011624,2]
[333918833,1722630639264,-1153.87,0.00011627,2]
[333918834,1722630639273,-1153.87,0.0001163,2]
[333918836,1722630639283,-1153.87,0.00011633,2]
[333918838,1722630639292,-1153.87,0.00011636,2]
[333918840,1722630639301,-1153.87,0.00011639,2]
[333918842,1722630639310,-1153.87,0.00011642,2]
[333918844,1722630639321,-808.72035096,0.00011678,2]
[333918846,1722630639330,-10186.80000099,0.000118,2]
[333918848,1722630639339,-2408.62801075,0.00011841,2]
[333918849,1722630639349,-15578.10577522,0.0001185,2]
[333918850,1722630639358,-25298.4632004,0.0001185,2]
[333918851,1722630639367,-1496.07373207,0.0001185,2]
[333918852,1722630639375,-22684.93272682,0.0001185,2]
[333918853,1722630639384,-947.76827511,0.00011896,2]
[333918854,1722630639394,-947.76827511,0.00011896,2]
[333918855,1722630639403,-528.40182091,0.00011896,2]
[333918856,1722630639413,-719.24573666,0.00011896,2]
[333918857,1722630639422,-4280.87781785,0.00011896,2]
[333918858,1722630639431,-210.84776497,0.00011896,2]
[333918859,1722630639441,-297.18571325,0.00011896,2]
[333918861,1722630639451,-492.60525428,0.00011896,2]
[333918863,1722630639460,-414.42088347,0.00011896,2]
[333918865,1722630639470,-4004.10613975,0.00011896,2]
[333918867,1722630639480,-1926.73701932,0.00011896,2]
[333918868,1722630639491,-1256.27829447,0.00011896,2]
[333918869,1722630639500,-1500.0,0.00011896,2]
[333918870,1722630639509,-205.72998009,0.00011896,2]
[333918871,1722630639519,-218.69189255,0.00011896,2]
[333918872,1722630639527,-270.28818504,0.00011896,2]
[333918873,1722630639536,-189.8542684,0.00011896,2]
[333918874,1722630639545,-2143.78276528,0.00011896,2]
[333918875,1722630639554,-2727.16525437,0.00011896,2]
[333918876,1722630639563,-298.34472477,0.00011896,2]
[333918877,1722630639572,-5398.55869267,0.00011896,2]
[333918878,1722630639581,-1274.36385477,0.00011896,2]
[333918879,1722630639591,-365.36537875,0.00011896,2]
[333918880,1722630639600,-1183.81771126,0.00011896,2]
[333918881,1722630639610,-7269.27662273,0.00011896,2]
[333918882,1722630639619,-1137.94693277,0.00011896,2]
[333918883,1722630639629,-363.80421493,0.00011959,2]
[333918884,1722630639638,-155.0,0.00011959,2]
[333918885,1722630639647,-4472.47771748,0.00011959,2]
[333918886,1722630639656,-155.0,0.00011959,2]
[333918887,1722630639666,-3117.89233954,0.00011959,2]
[333918888,1722630639675,-264.23719677,0.00011959,2]
[333918889,1722630639684,-155.0,0.00011959,2]
[333918890,1722630639693,-519.62430261,0.00011959,2]
[333918891,1722630639702,-1112.24767944,0.00011959,2]
[333918892,1722630639712,-3079.05538157,0.00011959,2]
[333918893,1722630639721,-288.2841061,0.00011959,2]
[333918894,1722630639731,-3400.91875942,0.00011959,2]
[333918895,1722630639740,-550.0,0.00012,2]
[333918896,1722630639749,-340.68338463,0.00012121,4]
[333918897,1722630639759,-808.72035096,0.00012456,2]
[333918898,1722630639768,-2408.62801075,0.00012599,2]
[333918899,1722630639777,-1044.95,0.00012947,2]
[333918900,1722630639786,-250.0,0.00013002,2]
[333918901,1722630639795,-808.72035096,0.00013233,2]
[333918902,1722630639806,-722.21,0.00013234,2]
[333918903,1722630639824,-2408.62801075,0.00013356,2]
[333918904,1722630639833,-2371.73,0.00013357,2]
[333918905,1722630639842,-13482.47257015,0.00013448,2]
[333918906,1722630639854,-2517.08742985,0.00013448,2]
[333918907,1722630639868,-4790.79929498,0.00013483,2]
[333918908,1722630639877,-2838.6219248,0.00013483,2]
[333918909,1722630639886,-468.17,0.00013621,2]
[333918910,1722630639896,-200.0,0.000138,2]
[333918911,1722630639905,-263.1918,0.00013879,2]
[333918912,1722630639914,-6486.85320803,0.000139,2]
[333918913,1722630639924,-150.41,0.00013973,2]
[333918914,1722630639933,-600.0,0.00014,2]
[333918915,1722630639942,-808.72035096,0.00014011,2]
[333918916,1722630639951,-2408.62801075,0.00014113,2]
[333918917,1722630639960,-344.59143168,0.00014167,2]
[333918918,1722630639969,-458.96208166,0.00014167,2]
[333918919,1722630639978,-2000.0,0.00014317,2]
[333918920,1722630639988,-9456.94,0.000145,2]
[333918921,1722630639997,-891.68121634,0.00014519,2]
[333918922,1722630640006,-891.68121634,0.00014519,2]
[333918923,1722630640015,-1291.0117,0.00014519,2]
[333918924,1722630640025,-250.0,0.00014675,2]
[333918925,1722630640034,-160.52,0.00014725,2]
[333918926,1722630640043,-600.0,0.00014772,2]
[333918927,1722630640053,-318.57,0.00014772,2]
[333918928,1722630640062,-808.72035096,0.00014789,2]
[333918929,1722630640071,-194.76,0.000148,2]
[333918930,1722630640081,-2408.62801075,0.00014871,2]
[333918931,1722630640090,-1766.0,0.00015,2]
[333918933,1722630640099,-1044.95,0.00015211,2]
[333918934,1722630640109,-203.45,0.00015266,2]
[333918935,1722630640118,-400.0,0.00015409,2]
[333918936,1722630640127,-808.72035096,0.00015567,2]
[333918937,1722630640137,-273.267602,0.00015616,2]
[333918938,1722630640146,-2408.62801075,0.00015628,2]
[333918939,1722630640155,-14842.6722,0.00015779,2]
[333918940,1722630640164,-2200.0,0.000159,5]
[333918941,1722630640174,-1300.0,0.000159,5]
[333918942,1722630640183,-155.35,0.00016124,2]
[333918943,1722630640193,-2675.9042,0.00016134,2]
[333918944,1722630640202,-592.94,0.00016134,2]
[333918945,1722630640211,-10243.8914,0.00016134,2]
[333918946,1722630640221,-965.9951,0.00016134,2]
[333918947,1722630640230,-3780.621,0.00016134,2]
[333918948,1722630640240,-886.49,0.00016134,2]
[333918949,1722630640250,-1000.0,0.00016134,2]
[333918950,1722630640263,-2500.0,0.00016134,2]
[333918951,1722630640273,-1299.5345,0.00016234,2]
[333918952,1722630640282,-100000.0,0.00016234,2]
[333918953,1722630640291,-500.0,0.00016234,2]
[333918954,1722630640301,-118111.95344182,0.00016234,2]
[333918955,1722630640313,-54722.31725818,0.00016234,2]
[333918956,1722630640322,-290.4654,0.00016234,2]
[333918957,1722630640332,-153.18864,0.00016274,2]
[333918958,1722630640341,-5907.697231,0.000163,2]
[333918959,1722630640351,-502.759182,0.000163,2]
[333918960,1722630640360,-10000.0,0.00016333,2]
[333918961,1722630640369,-159.40595947,0.00016338,2]
[333918962,1722630640379,-167.36525561,0.00016338,2]
[333918963,1722630640388,-151.7286345,0.00016338,2]
[333918964,1722630640398,-225.1844,0.00016338,2]
[333918965,1722630640408,-808.72035096,0.00016344,2]
[333918966,1722630640418,-150.0,0.00016369,2]
[333918967,1722630640428,-150.0,0.00016375,2]
[333918968,1722630640438,-150.0,0.00016377,2]
[333918969,1722630640448,-150.0,0.0001638,2]
[333918970,1722630640457,-2408.62801075,0.00016385,2]
[333918971,1722630640467,-150.0,0.00016387,2]
[333918972,1722630640476,-150.0,0.00016389,2]
[333918973,1722630640486,-494.89548425,0.00016392,2]
[333918974,1722630640495,-3335.13025966,0.00016392,2]
[333918975,1722630640504,-150.0,0.00016393,2]
[333918976,1722630640514,-150.0,0.00016398,2]
[333918977,1722630640523,-150.0,0.00016399,2]
[333918978,1722630640533,-150.0,0.00016405,2]
[333918979,1722630640542,-150.0,0.00016406,2]
[333918980,1722630640551,-150.0,0.00016407,2]
[333918981,1722630640561,-150.0,0.00016408,2]
[333918982,1722630640570,-150.0,0.00016417,2]
[333918983,1722630640579,-150.0,0.00016417,2]
[333918984,1722630640589,-150.0,0.00016418,2]
[333918985,1722630640598,-150.0,0.00016419,2]
[333918986,1722630640607,-150.0,0.0001642,2]
[333918987,1722630640617,-155.35,0.00016428,2]
[333918988,1722630640627,-150.0,0.00016432,2]
[333918989,1722630640636,-1406.0569564,0.00016433,2]
[333918990,1722630640645,-837.4566347,0.00016433,2]
[333918991,1722630640654,-17179.3022314,0.00016433,2]
[333918992,1722630640663,-1001.7768458,0.00016433,2]
[333918993,1722630640673,-109397.9398396,0.00016433,2]
[333918994,1722630640682,-6851.2565174,0.00016433,2]
[333918995,1722630640692,-2090.3799298,0.00016433,2]
[333918996,1722630640702,-11981.8422033,0.00016433,2]
[333918997,1722630640711,-2433.2711308,0.00016433,2]
[333918998,1722630640721,-150.0,0.00016434,2]
[333918999,1722630640730,-150.0,0.00016436,2]
[333919000,1722630640739,-150.0,0.00016437,2]
[333919001,1722630640748,-1220.96148788,0.00016437,2]
[333919002,1722630640758,-1214.0,0.00016438,2]
[333919003,1722630640767,-153.846153,0.00016438,2]
[333919004,1722630640776,-500.0,0.00016438,2]
[333919005,1722630640785,-500.0,0.00016438,2]
[333919006,1722630640795,-500.0,0.00016438,2]
[333919007,1722630640804,-1000.0,0.00016438,2]
[333919008,1722630640813,-300.0,0.00016438,2]
[333919009,1722630640822,-500.0,0.00016438,2]
[333919010,1722630640832,-580.95414524,0.00016438,2]
[333919011,1722630640841,-500.0,0.00016438,2]
[333919012,1722630640851,-901.7,0.00016438,2]
[333919013,1722630640860,-500.0,0.00016438,2]
[333919014,1722630640870,-527.8613019,0.00016438,2]
[333919015,1722630640880,-500.0,0.00016438,2]
[333919017,1722630640890,-561.85,0.00016438,2]
[333919019,1722630640899,-1469.09,0.00016438,2]
[333919021,1722630640908,-542.11,0.00016438,2]
[333919023,1722630640919,-500.0,0.00016438,2]
[333919025,1722630640929,-500.0,0.00016438,2]
[333919027,1722630640939,-500.0,0.00016438,2]
[333919029,1722630640948,-967.63,0.00016438,2]
[333919030,1722630640958,-200.0,0.00016438,2]
[333919032,1722630640967,-2075.39,0.00016438,2]
[333919034,1722630640977,-1161.14,0.00016438,2]
[333919036,1722630640987,-500.0,0.00016438,2]
[333919038,1722630640996,-1305.79,0.00016438,2]
[333919040,1722630641005,-1405.7,0.00016438,2]
[333919042,1722630641015,-1468.26,0.00016438,2]
[333919044,1722630641024,-500.0,0.00016438,2]
[333919046,1722630641033,-500.0,0.00016438,2]
[333919048,1722630641043,-500.0,0.00016438,2]
[333919050,1722630641052,-500.0,0.00016438,2]
[333919052,1722630641064,-500.0,0.00016438,2]
[333919054,1722630641073,-500.0,0.00016438,2]
[333919056,1722630641083,-500.0,0.00016438,2]
[333919058,1722630641093,-500.0,0.00016438,2]
[333919060,1722630641103,-1697.42,0.00016438,2]
[333919062,1722630641113,-500.0,0.00016438,2]
[333919064,1722630641123,-932.53,0.00016438,2]
[333919066,1722630641133,-500.0,0.00016438,2]
[333919068,1722630641143,-1002.13,0.00016438,2]
[333919070,1722630641153,-500.0,0.00016438,2]
[333919072,1722630641162,-1421.02,0.00016438,2]
[333919074,1722630641172,-500.0,0.00016438,2]
[333919076,1722630641182,-500.0,0.00016438,2]
[333919078,1722630641191,-1260.8,0.00016438,2]
[333919080,1722630641201,-608.21,0.00016438,2]
[333919082,1722630641210,-500.0,0.00016438,2]
[333919084,1722630641220,-500.0,0.00016438,2]
[333919086,1722630641229,-605.23,0.00016438,2]
[333919088,1722630641238,-500.0,0.00016438,2]
[333919090,1722630641249,-500.0,0.00016438,2]
[333919092,1722630641262,-500.0,0.00016438,2]
[333919094,1722630641272,-500.0,0.00016438,2]
[333919096,1722630641281,-500.0,0.00016438,2]
[333919098,1722630641291,-1478.01,0.00016438,2]
[333919100,1722630641300,-1371.07,0.00016438,2]
[333919102,1722630641309,-1058.33,0.00016438,2]
[333919104,1722630641319,-1160.76,0.00016438,2]
[333919106,1722630641330,-500.0,0.00016438,2]
[333919108,1722630641340,-500.0,0.00016438,2]
[333919110,1722630641350,-500.0,0.00016438,2]
[333919112,1722630641360,-500.0,0.00016438,2]
[333919114,1722630641369,-1346.66,0.00016438,2]
[333919116,1722630641378,-500.0,0.00016438,2]
[333919118,1722630641387,-563.81,0.00016438,2]
[333919119,1722630641396,-500.0,0.00016438,2]
[333919120,1722630641405,-1605.03,0.00016438,2]
[333919121,1722630641415,-227.48129846,0.00016438,2]
[333919122,1722630641424,-500.0,0.00016438,2]
[333919123,1722630641434,-500.0,0.00016438,2]
[333919124,1722630641445,-674.93,0.00016438,2]
[333919125,1722630641454,-500.0,0.00016438,2]
[333919126,1722630641464,-500.0,0.00016438,2]
[333919127,1722630641473,-500.0,0.00016438,2]
[333919128,1722630641483,-544.3,0.00016438,2]
[333919129,1722630641493,-500.0,0.00016438,2]
[333919130,1722630641502,-1539.73,0.00016438,2]
[333919131,1722630641512,-500.0,0.00016438,2]
[333919132,1722630641522,-500.0,0.00016438,2]
[333919133,1722630641531,-500.0,0.00016438,2]
[333919134,1722630641540,-500.0,0.00016438,2]
[333919135,1722630641549,-1468.56,0.00016438,2]
[333919136,1722630641558,-500.0,0.00016438,2]
[333919137,1722630641568,-500.0,0.00016438,2]
[333919138,1722630641577,-500.0,0.00016438,2]
[333919139,1722630641586,-1042.9,0.00016438,2]
[333919140,1722630641595,-1215.46,0.00016438,2]
[333919141,1722630641604,-421.52209106,0.00016438,2]
[333919142,1722630641614,-1021.01,0.00016438,2]
[333919143,1722630641625,-517.78,0.00016438,2]
[333919144,1722630641634,-500.0,0.00016438,2]
[333919145,1722630641643,-520.63,0.00016438,2]
[333919146,1722630641653,-500.0,0.00016438,2]
[333919147,1722630641662,-605.35,0.00016438,2]
[333919148,1722630641672,-566.47,0.00016438,2]
[333919149,1722630641682,-500.0,0.00016438,2]
[333919150,1722630641691,-1884.89,0.00016438,2]
[333919151,1722630641700,-1743.64,0.00016438,2]
[333919152,1722630641709,-1369.31,0.00016438,2]
[333919153,1722630641720,-648.49837684,0.00016438,2]
[333919154,1722630641730,-500.0,0.00016438,2]
[333919155,1722630641739,-244.93093388,0.00016438,2]
[333919156,1722630641749,-500.0,0.00016438,2]
[333919157,1722630641758,-500.0,0.00016438,2]
[333919158,1722630641767,-500.0,0.00016438,2]
[333919159,1722630641777,-1129.34,0.00016438,2]
[333919160,1722630641786,-680.45,0.00016438,2]
[333919161,1722630641795,-500.0,0.00016438,2]
[333919162,1722630641804,-500.0,0.00016438,2]
[333919163,1722630641814,-500.0,0.00016438,2]
[333919164,1722630641823,-500.0,0.00016438,2]
[333919165,1722630641833,-1592.02,0.00016438,2]
[333919166,1722630641842,-500.0,0.00016438,2]
[333919167,1722630641852,-500.0,0.00016438,2]
[333919168,1722630641862,-500.0,0.00016438,2]
[333919169,1722630641871,-854.53,0.00016438,2]
[333919170,1722630641881,-500.0,0.00016438,2]
[333919171,1722630641891,-669.88,0.00016438,2]
[333919172,1722630641900,-500.0,0.00016438,2]
[333919173,1722630641909,-500.0,0.00016438,2]
[333919174,1722630641920,-623.3,0.00016438,2]
[333919175,1722630641929,-500.0,0.00016438,2]
[333919176,1722630641938,-500.0,0.00016438,2]
[333919177,1722630641948,-1005.04,0.00016438,2]
[333919178,1722630641957,-635.44,0.00016438,2]
[333919179,1722630641966,-500.0,0.00016438,2]
[333919180,1722630641975,-1145.99,0.00016438,2]
[333919181,1722630641985,-500.0,0.00016438,2]
[333919182,1722630641994,-760.29,0.00016438,2]
[333919183,1722630642003,-553.34871154,0.00016438,2]
[333919184,1722630642013,-740.09,0.00016438,2]
[333919185,1722630642023,-624.07,0.00016438,2]
[333919186,1722630642032,-500.0,0.00016438,2]
[333919187,1722630642041,-500.0,0.00016438,2]
[333919188,1722630642051,-500.0,0.00016438,2]
[333919189,1722630642061,-1080.56,0.00016438,2]
[333919190,1722630642071,-150.0,0.00016438,2]
[333919191,1722630642082,-753.66,0.00016438,2]
[333919192,1722630642092,-500.0,0.00016438,2]
[333919193,1722630642101,-1046.49,0.00016438,2]
[333919194,1722630642112,-500.0,0.00016438,2]
[333919195,1722630642121,-559.28,0.00016438,2]
[333919196,1722630642131,-500.0,0.00016438,2]
[333919197,1722630642141,-500.0,0.00016438,2]
[333919198,1722630642151,-500.0,0.00016438,2]
[333919199,1722630642160,-2130.47,0.00016438,2]
[333919200,1722630642170,-528.19,0.00016438,2]
[333919201,1722630642179,-2217.22,0.00016438,2]
[333919202,1722630642189,-914.4,0.00016438,2]
[333919203,1722630642485,-500.0,0.00016438,2]
[333919204,1722630642496,-598.11054128,0.00016438,2]
[333919205,1722630642522,-191.56945872,0.00016438,2]
[333919206,1722630642532,-500.0,0.00016438,2]
[333919207,1722630642542,-1429.5,0.00016438,2]
[333919208,1722630642551,-897.93054118,0.00016438,2]
[333919209,1722630642564,-1388.94945882,0.00016438,2]
[333919210,1722630642573,-500.0,0.00016438,2]
[333919211,1722630642583,-728.42,0.00016438,2]
[333919212,1722630642593,-558.06,0.00016438,2]
[333919213,1722630642603,-531.91,0.00016438,2]
[333919214,1722630642612,-633.52,0.00016438,2]
[333919215,1722630642622,-500.0,0.00016438,2]
[333919216,1722630642632,-1771.17,0.00016438,2]
[333919217,1722630642642,-500.0,0.00016438,2]
[333919218,1722630642651,-2603.5,0.00016438,2]
[333919219,1722630642661,-500.0,0.00016438,2]
[333919220,1722630642671,-1898.61,0.00016438,2]
[333919221,1722630642680,-891.17,0.00016438,2]
[333919222,1722630642690,-500.0,0.00016438,2]
[333919223,1722630642699,-914.03,0.00016438,2]
[333919224,1722630642709,-500.0,0.00016438,2]
[333919225,1722630642719,-500.0,0.00016438,2]
[333919226,1722630642729,-916.5,0.00016438,2]
[333919227,1722630642738,-943.26,0.00016438,2]
[333919228,1722630642748,-500.0,0.00016438,2]
[333919229,1722630642759,-891.0,0.00016438,2]
[333919230,1722630642768,-1003.92,0.00016438,2]
[333919231,1722630642778,-500.0,0.00016438,2]
[333919232,1722630642788,-500.0,0.00016438,2]
[333919233,1722630642799,-811.5,0.00016438,2]
[333919234,1722630642808,-901.15,0.00016438,2]
[333919235,1722630642818,-1609.5,0.00016438,2]
[333919236,1722630642829,-2065.54,0.00016438,2]
[333919237,1722630642839,-1330.96,0.00016438,2]
[333919238,1722630642849,-1526.73,0.00016438,2]
[333919239,1722630642859,-500.0,0.00016438,2]
[333919240,1722630642868,-500.0,0.00016438,2]
[333919241,1722630642878,-500.0,0.00016438,2]
[333919242,1722630642887,-500.0,0.00016438,2]
[333919243,1722630642897,-795.51,0.00016438,2]
[333919244,1722630642906,-1783.92,0.00016438,2]
[333919245,1722630642916,-500.0,0.00016438,2]
[333919246,1722630642927,-1932.16,0.00016438,2]
[333919247,1722630642938,-500.0,0.00016438,2]
[333919248,1722630642949,-1554.19,0.00016438,2]
[333919249,1722630642959,-1941.16,0.00016438,2]
[333919250,1722630642969,-531.33,0.00016438,2]
[333919251,1722630642979,-500.0,0.00016438,2]
[333919252,1722630642988,-815.55,0.00016438,2]
[333919253,1722630642998,-500.0,0.00016438,2]
[333919255,1722630643009,-713.29,0.00016438,2]
[333919256,1722630643018,-500.0,0.00016438,2]
[333919258,1722630643028,-1392.04,0.00016438,2]
[333919259,1722630643038,-1468.02,0.00016438,2]
[333919260,1722630643048,-500.0,0.00016438,2]
[333919261,1722630643059,-604.93,0.00016438,2]
[333919262,1722630643078,-500.0,0.00016438,2]
[333919264,1722630643088,-500.0,0.00016438,2]
[333919266,1722630643098,-500.0,0.00016438,2]
[333919268,1722630643108,-500.0,0.00016438,2]
[333919269,1722630643119,-500.0,0.00016438,2]
[333919270,1722630643128,-743.99,0.00016438,2]
[333919273,1722630643138,-500.0,0.00016438,2]
[333919277,1722630643148,-684.23,0.00016438,2]
[333919280,1722630643158,-500.0,0.00016438,2]
[333919283,1722630643170,-500.0,0.00016438,2]
[333919285,1722630643180,-500.0,0.00016438,2]
[333919287,1722630643189,-500.0,0.00016438,2]
[333919289,1722630643199,-1000.0,0.00016438,2]
[333919291,1722630643208,-500.0,0.00016438,2]
[333919293,1722630643218,-1000.0,0.00016438,2]
[333919295,1722630643228,-1000.0,0.00016438,2]
[333919297,1722630643237,-1000.0,0.00016438,2]
[333919299,1722630643247,-1000.0,0.00016438,2]
[333919302,1722630643258,-1278.06,0.00016438,2]
[333919305,1722630643269,-500.0,0.00016438,2]
[333919308,1722630643278,-500.0,0.00016438,2]
[333919311,1722630643287,-500.0,0.00016438,2]
[333919314,1722630643299,-500.0,0.00016438,2]
[333919317,1722630643308,-1659.84,0.00016438,2]
[333919320,1722630643318,-588.2,0.00016438,2]
[333919323,1722630643327,-1328.49,0.00016438,2]
[333919326,1722630643337,-500.0,0.00016438,2]
[333919328,1722630643347,-500.0,0.00016438,2]
[333919330,1722630643356,-765.21,0.00016438,2]
[333919332,1722630643365,-500.0,0.00016438,2]
[333919334,1722630643375,-546.63,0.00016438,2]
[333919336,1722630643384,-718.64,0.00016438,2]
[333919338,1722630643394,-526.17,0.00016438,2]
[333919340,1722630643403,-1261.93,0.00016438,2]
[333919342,1722630643413,-329.82793635,0.00016438,2]
[333919343,1722630643431,-1653.19206365,0.00016438,2]
[333919344,1722630643442,-505.76,0.00016438,2]
[333919345,1722630643452,-2863.66,0.00016438,2]
[333919346,1722630643461,-500.0,0.00016438,2]
[333919347,1722630643470,-993.89793635,0.00016438,2]
[333919348,1722630643482,-79.23206365,0.00016438,2]
[333919349,1722630643492,-500.0,0.00016438,2]
[333919350,1722630643501,-500.0,0.00016438,2]
[333919351,1722630643511,-2043.36,0.00016438,2]
[333919352,1722630643520,-4292.98,0.00016438,2]
[333919353,1722630643529,-500.0,0.00016438,2]
[333919354,1722630643538,-750.93,0.00016438,2]
[333919355,1722630643547,-686.69,0.00016438,2]
[333919356,1722630643560,-500.0,0.00016438,2]
[333919357,1722630643583,-500.0,0.00016438,2]
[333919358,1722630643593,-2081.99,0.00016438,2]
[333919359,1722630643602,-524.82,0.00016438,2]
[333919360,1722630643612,-500.0,0.00016438,2]
[333919361,1722630643622,-832.21,0.00016438,2]
[333919362,1722630643631,-666.03,0.00016438,2]
[333919363,1722630643641,-500.0,0.00016438,2]
[333919364,1722630643650,-500.0,0.00016438,2]
[333919365,1722630643659,-500.0,0.00016438,2]
[333919366,1722630643668,-657.41,0.00016438,2]
[333919367,1722630643678,-500.0,0.00016438,2]
[333919368,1722630643687,-3507.32,0.00016438,2]
[333919369,1722630643697,-500.0,0.00016438,2]
[333919371,1722630643706,-2324.76,0.00016438,2]
[333919373,1722630643716,-500.0,0.00016438,2]
[333919374,1722630643725,-500.0,0.00016438,2]
[333919375,1722630643735,-1379.74,0.00016438,2]
[333919376,1722630643745,-500.0,0.00016438,2]
[333919377,1722630643754,-256.30418343,0.00016438,2]
[333919379,1722630643764,-1294.67,0.00016438,2]
[333919381,1722630643773,-1501.21,0.00016438,2]
[333919383,1722630643782,-500.0,0.00016438,2]
[333919385,1722630643792,-500.0,0.00016438,2]
[333919387,1722630643802,-2493.77,0.00016438,2]
[333919389,1722630643811,-1276.16,0.00016438,2]
[333919391,1722630643820,-581.68,0.00016438,2]
[333919393,1722630643830,-771.85,0.00016438,2]
[333919395,1722630643840,-500.0,0.00016438,2]